Cogmind - Beta 10.2 @@@ ROGUE MODE // 2022.01.20 @ 22:04:16 Player: Crud Result: Destroyed by G-34 Mercenary with Small Laser Performance ------------- Evolutions (0) 0 Regions Visited (2) 400 Robots Destroyed (18) 90 Value Destroyed (451) 451 Prototype IDs (0) 0 Alien Tech Used (0) 0 Bonus (0) 0 TOTAL SCORE: 941 Bonus ------- None Cogmind --------- Core Integrity 0/250 Matter 300/300 Energy 100/100 System Corruption 9% Temperature Cool (6) Movement Walking (150) Ox1 Location -10/Mines Parts ------- > --- POWER (1) -------- (None) > --- PROPULSION (2) --- Aluminum Leg Aluminum Leg > --- UTILITY (2) ------ Medium Storage Unit Large Storage Unit > --- WEAPON (2) ------- (None) > --- INVENTORY (14) --- Heat Sink Improved Heat Sink High-capacity Battery (400) Medium Matter Pod (100) Visual Processing Unit Improved Sensor Array Seismic Analyzer Improved Targeting Computer Peak State ------------ > --- POWER ------------ Ion Engine > --- PROPULSION ------- Light Treads Light Treads > --- UTILITY ---------- Medium Storage Unit Large Storage Unit > --- WEAPON ----------- Heavy EM Pulse Gun Medium Laser > --- INVENTORY -------- Light Ion Engine Aluminum Leg Aluminum Leg Heat Sink Improved Heat Sink High-capacity Battery Medium Matter Pod Visual Processing Unit Improved Sensor Array Seismic Analyzer Improved Targeting Computer Heavy EM Pulse Gun Heavy EM Pulse Gun [Rating: 10] Favorites ----------- Power Ion Engine Engine Ion Engine Propulsion Light Treads Treads Light Treads Leg Aluminum Leg Wheel Wheel Utility Medium Storage Unit Storage Medium Storage Unit Weapon Heavy EM Pulse Gun Energy Gun Heavy EM Pulse Gun Ballistic Gun Light Assault Rifle Special Weapon Mining Laser Build | -11 -10 -10 ------- Run | Scr Mat Min Slots Evolved . | . . . Power . | . . . Propulsion . | . . . Utility . | . . . Weapon . | . . . Parts Attached 23 | 9 6 8 Power 4 | 2 1 1 Engine 4 | 2 1 1 Core . | . . . Reactor . | . . . Propulsion 6 | 3 1 2 Treads 3 | 2 1 . Leg 2 | . . 2 Wheel 1 | 1 . . Hover . | . . . Flight . | . . . Utility 4 | 2 2 . Device . | . . . Storage 4 | 2 2 . Processor . | . . . Hackware . | . . . Protection . | . . . Artifact . | . . . Weapon 9 | 2 2 5 Energy Gun 7 | 1 2 4 Energy Cannon . | . . . Ballistic Gun 1 | 1 . . Ballistic Cannon . | . . . Launcher . | . . . Special Weapon 1 | . . 1 Impact Weapon . | . . . Slashing Weapon . | . . . Piercing Weapon . | . . . Special Melee Weapon . | . . . Unidentified Prototypes . | . . . Parts Lost 13 | . 3 10 Power 2 | . . 2 Propulsion 3 | . 1 2 Utility . | . . . Weapon 8 | . 2 6 Highest Loss Streak 3 | . 2 3 Average Slot Usage (%) 91 | . 96 86 Engine 13 | . 14 13 Treads 24 | . 23 25 Storage 28 | . 28 28 Energy Gun 18 | . 19 16 Ballistic Gun 4 | . 8 . Naked Turns . | . . . Heaviest Build 35 | 16 34 35 Greatest Support 40 | 40 40 40 Greatest Overweight (x) 3 | 3 1 1 Average Overweight (x) . | . . . Largest Inventory Capacity 14 | 8 14 14 Average Capacity 12 | 6 12 14 Most Carried 14 | 6 14 13 Average Carried 10 | 4 11 10 Final Capacity 14 | 8 14 14 Final Carried 13 | 6 13 8 Class Distribution -------------------- 100% | Mutant Dominant Class ---------------- Mutant | -10/Materials Mutant | -10/Mines Resources | -11 -10 -10 ----------- Run | Scr Mat Min Matter Collected 536 | 255 156 125 Remotely . | . . . Salvage Created 723 | 68 418 237 Parts 40 | 5 21 14 Haulers Intercepted . | . . . Recyclers Shooed 1 | 1 . . Parts Field Recycled . | . . . Retrieved Matter . | . . . Parts Self-Destructed . | . . . Prevented . | . . . Kills | -11 -10 -10 ------- Run | Scr Mat Min Combat Hostiles Destroyed 14 | . 9 5 Guns 13 | . 9 4 AOE 1 | . . 1 Classes Destroyed 6 | 2 3 1 Tunneler 2 | 1 . 1 Recycler 2 | 1 1 . Watcher 1 | . 1 . Swarmer 3 | . 3 . Grunt 10 | . 6 4 Assembled 1 | . . 1 Best Kill Streak 3 | 2 3 3 Combat Bots Only 3 | . 3 2 Max Kills in Single Turn 1 | 1 1 1 Gunslinging . | . . . Exploded 1 | . . 1 Melee . | . . . Uniques/NPCs Destroyed . | . . . Combat | -11 -10 -10 -------- Run | Scr Mat Min Damage Taken 1352 | . 492 860 Core 252 | . 75 177 Absorbed by Shields . | . . . Core Remaining (%) 100 | 100 . . Volleys Fired 72 | 3 43 26 Largest 2 | 2 2 2 Hottest 100 | 70 100 100 Shots Fired 131 | 6 86 39 Gun 127 | 6 86 35 Cannon . | . . . Launcher . | . . . Special 4 | . . 4 Kinetic 30 | 3 27 . Thermal 63 | 3 49 11 Explosive . | . . . Electromagnetic 38 | . 10 28 Robot Hit Streak 11 | 3 11 7 Robot Miss Streak 4 | 1 3 4 Penetration Max . | . . . Secondary Targets 2 | . 1 1 Max Gunslinging Chain 1 | . 1 1 Shots Hit Robots 76 | 4 50 22 Core Hits 36 | 3 21 12 Critical Hits 1 | . 1 . Critical Kills 1 | . 1 . Critical Parts Destroyed . | . . . Melee Attacks . | . . . Impact . | . . . Slashing . | . . . Piercing . | . . . Sneak Attacks . | . . . Combat Hostiles . | . . . Follow-up Attacks . | . . . Damage Inflicted 976 | 40 544 392 Guns 873 | 40 544 289 Cannons . | . . . Explosions 35 | . . 35 Melee . | . . . Ramming 20 | . . 20 Kinetic 162 | 16 146 . Thermal 478 | 24 326 128 Explosive . | . . . Electromagnetic 316 | . 72 244 Impact . | . . . Slashing . | . . . Piercing . | . . . Highest Corruption 9 | . . 9 Average Corruption 8 | . . 8 Corruption Purged . | . . . Effects 20 | . . 20 Message Errors 4 | . . 4 Matter Fused 5 | . . 5 Heat Flow Errors 1 | . . 1 Energy Discharges 1 | . . 1 Parts Rejected 1 | . . 1 Data Loss (minor) 2 | . . 2 Data Loss (major) 2 | . . 2 Targeting Errors 4 | . . 4 Overload Shots . | . . . Overflow Damage 5 | . . 5 Projectiles . | . . . Explosions 5 | . . 5 Melee . | . . . Knockbacks . | . . . Impact . | . . . Kinetic . | . . . Secondary . | . . . Self-Inflicted Damage 22 | . . 22 Shots 1 | . . 1 Rammed 6 | . . 6 Targets Rammed 6 | . . 6 Kicked . | . . . Crushed . | . . . Highest Temperature 334 | 70 334 253 Average Temperature 92 | 33 105 75 Received Heat Transfer 537 | . 243 294 Effects 1 | . 1 . Interference 1 | . 1 . Siege Activations . | . . . Robots Corrupted . | . . . Combat Hostiles . | . . . Parts Fried 1 | . . 1 Impact Corruptions . | . . . Robots Melted . | . . . Combat Hostiles . | . . . Parts Melted . | . . . Heat Transferred 1286 | 74 962 250 Parts Sabotaged . | . . . Parts Stolen . | . . . Parts Stripped . | . . . Power Chain Reactions 1 | . . 1 Missiles Intercepted . | . . . Alert | -11 -10 -10 ------- Run | Scr Mat Min Peak Influence 167 | 10 167 87 Initial 47 | . 6 47 Average 55 | 3 74 46 Maximum Alert Level . | . . . Low Security (%) 100 | 100 100 100 Level 1 . | . . . Level 2 . | . . . Level 3 . | . . . Level 4 . | . . . Level 5 . | . . . High Security . | . . . Max Security . | . . . Squads Dispatched . | . . . Investigation . | . . . Extermination . | . . . Reinforcement . | . . . Assault . | . . . Garrison . | . . . Intercept . | . . . Construction Impeded . | . . . Haulers Reinforced . | . . . Stealth | -11 -10 -10 --------- Run | Scr Mat Min Distress Signals 3 | . 2 1 Communications Jammed . | . . . Distress Signals . | . . . Times Spotted 24 | . 15 9 Peak Tracking Total 3 | . 3 3 Tactical Retreats 4 | . 2 2 Traps | -11 -10 -10 ------- Run | Scr Mat Min Traps Triggered . | . . . Indirectly . | . . . Trap Hack Attempts . | . . . Triggered . | . . . Disarmed . | . . . Reprogrammed . | . . . Reused . | . . . Traps Extracted . | . . . Installed . | . . . Triggered . | . . . Machines | -11 -10 -10 ---------- Run | Scr Mat Min Machines Disabled . | . . . Max in Single Turn . | . . . Machines Sabotaged . | . . . Garrisons Compromised . | . . . Overloaded Fab Kills . | . . . Fab Network Shutdowns . | . . . Hacking | -11 -10 -10 --------- Run | Scr Mat Min Machines Accessed 6 | . 6 . Terminals 5 | . 5 . Fabricators . | . . . Repair Stations . | . . . Recycling Units 1 | . 1 . Scanalyzers . | . . . Garrison Access . | . . . Total Hacks 16 | . 16 . Successful 9 | . 9 . Failed 7 | . 7 . Catastrophic . | . . . Database Lockouts . | . . . Manual 10 | . 10 . Terminals 15 | . 15 . Fabricators . | . . . Repair Stations . | . . . Recycling Units 1 | . 1 . Scanalyzers . | . . . Garrison Access . | . . . Terminal Hacks 3 | . 3 . Locate Traps 1 | . 1 . Zone Layout 2 | . 2 . Fabricator Hacks . | . . . Repair Station Hacks . | . . . Recycling Unit Hacks 1 | . 1 . Report Inventory 1 | . 1 . Scanalyzer . | . . . Garrison Access Hacks . | . . . Unauthorized Hacks 5 | . 5 . Terminals 5 | . 5 . Track 3 | . 3 . Botnet 1 | . 1 . Operators 1 | . 1 . Fabricators . | . . . Repair Stations . | . . . Recycling Units . | . . . Scanalyzers . | . . . Garrison Access . | . . . Data Cores Recovered . | . . . Used . | . . . Hacking Detections 4 | . 4 . Full Trace Events . | . . . Feedback Events . | . . . Feedback Blocked . | . . . Robot Schematics Acquired . | . . . Robots Built . | . . . Matter . | . . . Time . | . . . Total Robot Build Rating . | . . . Part Schematics Acquired . | . . . Parts Built . | . . . Matter . | . . . Time . | . . . Total Part Build Rating . | . . . Parts Repaired . | . . . Time . | . . . Parts Recycled . | . . . Recycled Matter . | . . . Retrieved Matter . | . . . Retrieved Components . | . . . Parts Scanalyzed . | . . . Part Schematics Acquired . | . . . Parts Damaged . | . . . Bothacking | -11 -10 -10 ------------ Run | Scr Mat Min Used RIF Installer . | . . . Robots Hacked . | . . . Non-combat . | . . . Combat . | . . . Robot Hacks Applied . | . . . Relay Couplers Released . | . . . Robots Rewired . | . . . Allies Hacked . | . . . Hacks Repelled . | . . . Allies | -11 -10 -10 -------- Run | Scr Mat Min Total Allies . | . . . Largest Group . | . . . Highest-Rated Group . | . . . Highest-Rated Ally . | . . . Total Orders . | . . . Ally Attacks . | . . . Total Damage . | . . . Kills . | . . . Allies Corrupted . | . . . Allies Melted . | . . . Intel | -11 -10 -10 ------- Run | Scr Mat Min Robot Analysis Total . | . . . Derelict Logs Recovered . | . . . Drone Launches . | . . . Drone Recoveries . | . . . Exploration | -11 -10 -10 ------------- Run | Scr Mat Min Turns Passed 1415 | 121 661 633 Spaces Moved 565 | 64 335 166 Core 22 | 22 . . Treads 476 | 41 292 143 Legs 23 | . . 23 Wheels 44 | 1 43 . Hover . | . . . Flight . | . . . Fastest Speed 50 | 50 90 150 Average Speed 153 | 145 151 160 Slowest Speed 200 | 200 160 180 Overloaded Moves . | . . . Propulsion Burnouts . | . . . Robots Hopped . | . . . Cave-ins Triggered . | . . . Exploration Rate (%) 37 | 5 62 44 Regions Visited 2 Branch Regions 1 Pre-discovered Areas . | . . . Known Exits Taken . | . . . Unknown Exits Taken 2 | 1 1 . Scrap Searched 1 | . . 1 Spaces Dug . | . . . Terrain Destroyed 8 | . . 8 Melee . | . . . Projectile 2 | . . 2 AOE 6 | . . 6 Terrain Rammed . | . . . Walls Destroyed . | . . . Machines Disabled . | . . . Actions | -11 -10 -10 --------- Run | Scr Mat Min Total 977 | 83 411 483 Wait 286 | . 12 274 Move 563 | 63 334 166 Hop . | . . . Pick Up 22 | 8 11 3 Fast Attach 6 | 5 1 . Attach 13 | 2 3 8 Detach 1 | . 1 . Swap 4 | 2 2 . Drop 4 | . 4 . Fire 72 | 3 43 26 Melee . | . . . Ram . | . . . Kick 2 | . . 2 Crush 4 | . . 4 Escape Stasis . | . . . Rewire . | . . . Trap . | . . . Miscellaneous . | . . . Route ------- -11/Scrapyard -10/Materials (discovered 3 exits: [*Mat x2] / [*Min]) -10/Mines (discovered 1 exit: [*Mat]) History --------- Turn | Location | Event 7 | -11/Scrapyard | Discovered new exit (range 16) 122 | -11/Scrapyard | Entered Materials 241 | -10/Materials | Discovered new exit (range 17) 307 | -10/Materials | Build established: Mutant 539 | -10/Materials | Discovered new exit (range 5) 724 | -10/Materials | Discovered new exit (range 5) 783 | -10/Materials | Entered Mines 840 | -10/Mines | Discovered new exit (range 9) 986 | -10/Mines | Excavation squad dispatched 986 | -10/Mines | A large section of the Mines collapsed 1001 | -10/Mines | Core integrity fell below 50% 1028 | -10/Mines | Lost 3 parts (1p2w) 1236 | -10/Mines | Excavation squad dispatched 1362 | -10/Mines | Core integrity fell below 20% 1367 | -10/Mines | Lost 3 parts (1n2w) 1411 | -10/Mines | Lost 3 parts (1p1n1w) 1416 | -10/Mines | Destroyed by G-34 Mercenary with Small Laser Last Messages --------------- 01350_ G-34 Mercenary IFF system glitched. 01355_ Searching scrap... 01355_ Found Mining Laser. 01355_ Found Hover Unit. 01355_ Found Sml. Storage Unit. 01355_ Found 37 Matter. 01359_ Acquired Mining Laser. 01361_ System corrupted: Mining Laser targeting data glitched. 01364_ 2%VK16RPO=SZ&J6E91RUTWUA|VWN1PXAGVIIMX<< 01365_ Destroyed Sml. Laser. 01369_ System corrupted: Mining Laser targeting data glitched. 01372_ Lgt. Treads destroyed. 01376_ Mining Laser destroyed. 01379_ Acquired 20 matter. 01380_ U-05 Engineer builds a Wall. 01380_ Lgt. Ion Engine destroyed. 01398_ QI72PLFTGEJI1GL&I/WD4 01414_ Slammed into T-07 Excavator. 01415_ T-07 Excavator sends out distress signal. 01415_ Slammed into G-34 Mercenary. Map ----- +----------------------------------------------------+ | ##???????????????????????????????????????? | | #???????????????????????????????????????? | | ##???????????###?????????????????????????? | | ##????????????# ?????????????????????????? | | ##?????????????# #?????????????????????????? | | ???????????????# #?????????????????????????? | | ???????????????# #####?????????????????????? | | ???????????????# ## ##????????????????????? | | ????############=# ##???????????????????? | | |%! ##??????????????????? | | ????####### ###### #??????????????????? | | ??????????# #????##=%% ##?????????????????? | | ??????????# #?????## #####?????????????? | | ??????????# #??????# % =##????????????? | | #####?????# #??????## % "%*#####????????? | | #?????# ##??????### % = "###???????? | | #????## ##???????## %= ## #???????? | | ?# #???## ##??????## ""# #???????? | | ## ##### ##?????# ##### ##???????? | | # ## ##????# #"#### ##????????? | | #????# #"#???###?????????? | | #????# ##???????????????? | | #????# ################?? | | ### ##????# ###?# #?? | | ##?## ##?????#t##### """ """ #?? | | ##??## #??????# @gt!=""" """ #?? | | #???# ##??????####### """ """ #?? | | #???## #?????????##### #?? | | #????### #????????????# """ """ #?? | | ##??????### ##????????????# """ """ #?? | | ##??????????###?????????????# """ """ #?? | | ????????????????????????????# #?? | | ????????????????????????????##############?? | | ???????????????????????????????????????????? | | ???????????????????????????????????????????? | | | | | | | | | | | | | | | | | | | | | | | | | | | | | | | +----------------------------------------------------+ Best States ------------- Heat Dissipation 25 Energy Generation 10 Energy Capacity 250 Matter Stores 300 Matter Capacity 300 Sight Range 16 Terrain Scan Density 10 Evasion (%) 42 Recoil Reduction 2 Item Schematics ----------------- None Robot Schematics ------------------ None Fabricated ------------ Nothing Alien Tech Used ----------------- None Achievements -------------- True Hacker Challenges ------------ None Game ------ Seed BattleLongswordAccelerator Manual? 0 Play Time 00:23:43 Cumulative 15.6 hours Start 2022.01.20 @ 21:39:18 End 2022.01.20 @ 22:04:16 Sessions 1 Manual Loads 0 Difficulty Rogue Special Mode None Game No. 16 Rogue 16 Adventurer 0 Explorer 0 Win Type - Total 0 Types 0/0/0/0/0/0/0/0/0 Lore% 20 Gallery% 26 Achievement% 19 Wizard Run 0 Options --------- ASCII 0 Keyboard 0 Movement Mouse Keybinds 0 Fullscreen 1 Font 18/SmallcapsGlow Map View 76x50 Tactical HUD 1 Map Filters NONE Filters NONE Steam 1 RUN: 6c4cc696-3179-4505-be29-b4033d32cbc3